Cogmind - Beta 15 @@@ ROGUE MODE // 2025.05.29 @ 00:19:35 Player: CL-1C0 Result: Destroyed by G-67 Veteran with Field Laser Performance ------------- Evolutions (7) 3500 Regions Visited (25) 5000 Robots Destroyed (220) 1100 Value Destroyed (14937) 14937 Prototype IDs (22) 440 Alien Tech Used (0) 0 Bonus (14121) 14121 TOTAL SCORE: 39098 Bonus ------- High Alert Combat Kills 2298 Follower Combat Kills 4323 Entered Garrisons 2000 Used RIF Installer 4500 Hacked Protovariant 500 Scanned by Researcher 500 Cogmind --------- Core Integrity 0/1300 Matter 217/300 Energy 99/100 System Corruption 4% Temperature Cool (12) Movement Core (50) Location -3/Testing Parts ------- > --- POWER (2) -------- (None) > --- PROPULSION (6) --- (None) > --- UTILITY (10) ----- Gravity Neutralizer Enhanced Optical Array Hacking Suite Relay Coupler [Specialist] (26) > --- WEAPON (3) ------- (None) > --- INVENTORY (5) ---- Heavy Antimatter Reactor Graphene Brace Warp Gun Advanced Datajack Enhanced Force Lance Peak State ------------ > --- POWER ------------ Quantum Reactor Improved Quantum Reactor > --- PROPULSION ------- Thunder Leg Advanced VSS Leg Advanced VSS Leg Biometal Leg Enhanced Biometal Leg Centrium Leg > --- UTILITY ---------- Experimental Heat Sink High-capacity Storage Unit Advanced Targeting Computer Improved Armor Integrity Analyzer Improved Medium Armor Plating Advanced Focal Shield Advanced Remote Force Field Relay Coupler [C] Relay Coupler [Demolisher] Advanced Dynamic Insulation System > --- WEAPON ----------- Advanced KE Penetrator Heavy Linear Accelerator > --- INVENTORY -------- Biometal Leg Advanced Cooling System Experimental Matter Compressor IFF Parser Advanced Particle Charger Quantum Capacitor Transmission Jammer Active Sensor Spoofer Advanced Thermal Defense Suite Advanced Point Defense System Relay Coupler [NC] Relay Coupler [Cutter] Relay Coupler [Demolisher] Relay Coupler [Specialist] Relay Coupler [Hunter] Enhanced Nova Cannon Advanced Datajack Advanced Remote Datajack Advanced Remote Datajack [Rating: 159] Favorites ----------- Power Reinforced Quantum Reactor Engine Ion Engine Power Core Cooled Fission Core Reactor Reinforced Quantum Reactor Propulsion Centrium Leg Treads Light Treads Leg Centrium Leg Wheel Armored Huge Wheel Hover Unit Gravmag System Flight Unit Flight Unit Utility High-capacity Storage Unit Device Advanced Cooling System Storage High-capacity Storage Unit Processor Advanced Targeting Computer Hackware Relay Coupler [Grunt] Protection Improved Medium Armor Plating Weapon Remote Datajack Energy Gun Pulse Rifle Energy Cannon Long-range Phase Cannon Ballistic Gun Light Assault Rifle Ballistic Cannon Advanced Assault Cannon Launcher Rocket Array Special Weapon Remote Datajack Impact Weapon Power Maul Piercing Weapon Spear Build | -11 -10 -10 -10 -9 -8 -8 -8 -8 -7 -7 -7 -7 -6 -6 -6 -6 -5 -5 -5 -5 -4 -4 -3 -3 -3 ------- Run | Yrd Mat Min Exi Min Mat Gar Mat Gar Fac Gar Fac Gar Fac Gar Fac Gar Fac Gar Fac Gar Fac Gar Res Gar Tes Slots Evolved 14 | . . . . . 4 . . . 2 . . . 2 . . . 2 . . . 2 . 2 . . Power 1 | . . . . . . . . . . . . . . . . . . . . . 1 . . . . Propulsion 4 | . . . . . 1 . . . . . . . 1 . . . 2 . . . . . . . . Utility 8 | . . . . . 2 . . . 2 . . . 1 . . . . . . . 1 . 2 . . Weapon 1 | . . . . . 1 . . . . . . . . . . . . . . . . . . . . Parts Attached 260 | . 6 2 . 1 4 26 6 18 8 7 2 22 1 14 16 16 8 26 12 20 1 16 7 12 9 Power 16 | . 1 . . . . 3 . 1 . 1 . 2 . 1 2 1 . 2 . . . . 1 1 . Engine 6 | . 1 . . . . 2 . . . 1 . 1 . . 1 . . . . . . . . . . Core 6 | . . . . . . 1 . 1 . . . 1 . 1 1 1 . . . . . . . . . Reactor 4 | . . . . . . . . . . . . . . . . . . 2 . . . . 1 1 . Propulsion 69 | . 2 2 . 1 . 9 . 9 1 1 1 12 . 6 . . 2 9 . 7 . 2 2 2 1 Treads 15 | . 2 1 . . . 3 . 3 . 1 . 4 . . . . . . . . . . . . 1 Leg 43 | . . . . . . 3 . 3 . . . 8 . 6 . . 2 9 . 6 . 2 2 2 . Wheel 4 | . . 1 . 1 . . . . 1 . 1 . . . . . . . . . . . . . . Hover 4 | . . . . . . . . 3 . . . . . . . . . . . 1 . . . . . Flight 3 | . . . . . . 3 . . . . . . . . . . . . . . . . . . . Utility 121 | . 1 . . . 1 4 3 6 6 4 1 6 1 6 9 12 6 10 7 8 1 12 3 8 6 Device 25 | . . . . . . 1 . 1 1 . . . . 1 2 2 . 4 3 2 . 1 2 3 2 Storage 3 | . . . . . . . 1 . . . . . . . 1 . . . . . . . . 1 . Processor 11 | . 1 . . . 1 2 . . 1 . . . . . 1 1 . . . . . . 1 1 2 Hackware 69 | . . . . . . . . 4 3 4 1 5 1 5 5 8 6 3 3 5 1 10 . 3 2 Protection 13 | . . . . . . 1 2 1 1 . . 1 . . . 1 . 3 1 1 . 1 . . . Artifact . | . . . . . . . . . . . . . . . . . . . . . . . . . . Weapon 54 | . 2 . . . 3 10 3 2 1 1 . 2 . 1 5 3 . 5 5 5 . 2 1 1 2 Energy Gun 5 | . . . . . . 3 . . . . . . . . 1 . . . . . . . . . 1 Energy Cannon 8 | . . . . . . 2 . . . . . . . . 3 1 . 1 . . . . 1 . . Ballistic Gun 15 | . 2 . . . 3 2 . . . . . . . 1 . . . 1 5 . . . . 1 . Ballistic Cannon 8 | . . . . . . 3 . . . . . . . . . . . 2 . 2 . 1 . . . Launcher 4 | . . . . . . . 2 1 . . . . . . 1 . . . . . . . . . . Special Weapon 10 | . . . . . . . . 1 . 1 . 2 . . . 1 . 1 . 3 . 1 . . . Impact Weapon 2 | . . . . . . . . . 1 . . . . . . 1 . . . . . . . . . Slashing Weapon . | . . . . . . . . . . . . . . . . . . . . . . . . . . Piercing Weapon 2 | . . . . . . . 1 . . . . . . . . . . . . . . . . . 1 Special Melee Weapon . | . . . . . . . . . . . . . . . . . . . . . . . . . . Unidentified Prototypes 20 | . . . . . . . 2 . . . . . . . 6 . 1 . . 1 . . 1 6 3 Parts Lost 85 | . 1 2 . 5 . 10 . 7 2 3 3 7 1 6 2 . 1 4 1 9 . . . 14 7 Power 9 | . 1 . . 1 . 1 . 1 1 . 1 1 . . . . . . . . . . . 2 . Propulsion 32 | . . 2 . 2 . 3 . 4 . 1 2 5 1 2 . . . 1 . 1 . . . 7 1 Utility 17 | . . . . . . . . 1 . . . . . 1 . . . 2 1 3 . . . 4 5 Weapon 27 | . . . . 2 . 6 . 1 1 2 . 1 . 3 2 . 1 1 . 5 . . . 1 1 Highest Loss Streak 12 | . 1 2 . 2 . 7 . 4 1 1 3 3 1 2 1 . 1 1 1 3 . . . 12 6 To Critical Strikes 2 | . . 1 . . . . . . . . . . . . . . . 1 . . . . . . . Average Backups 15 | . 7 6 6 7 5 5 12 15 17 16 15 17 13 16 18 18 16 17 18 18 16 18 18 17 4 Power . | . . . . . . . . . 1 . . . 1 . . 1 1 1 1 . . . . . . Propulsion 1 | . 4 2 1 . . . . 1 1 1 1 1 . . 2 2 . . 2 . . . . . . Utility 9 | . . 1 2 4 4 2 8 7 10 11 11 12 9 11 13 13 12 12 10 10 10 14 15 13 1 Weapon 2 | . 1 3 3 3 1 1 3 5 4 3 2 1 2 3 1 1 . 1 3 3 3 2 1 1 1 Tool/Special . | . . . . . . . . . . . . . . . . . . . . . . . . . . Unused Backups 55 | . 6 . . . . 7 2 3 . . . 1 . 7 . 1 . 6 3 4 . 3 . 9 3 Power 6 | . 1 . . . . 1 . . . . . . . 1 . . . 2 . . . . . . 1 Propulsion 3 | . 2 . . . . . . . . . . . . 1 . . . . . . . . . . . Utility 30 | . 1 . . . . 3 2 1 . . . 1 . 2 . 1 . 2 3 3 . 2 . 8 1 Weapon 14 | . 2 . . . . 3 . 2 . . . . . 3 . . . 2 . 1 . 1 . . . Tool/Special 2 | . . . . . . . . . . . . . . . . . . . . . . . . 1 1 Average Slot Usage (%) 86 | . 89 100 100 68 54 91 96 95 87 83 78 95 98 88 79 69 74 81 87 93 93 92 92 87 30 Engine 2 | . 13 14 14 7 . 4 . . . 3 5 1 6 2 2 . . . . . . . . . . Core 2 | . . . . . . . 9 7 6 . . 4 . 3 3 6 5 4 . . . . . . . Reactor 1 | . . . . . . . . . . . . . . . . . . . 5 4 10 10 9 8 . Treads 4 | . 11 22 14 14 9 9 . 6 15 6 6 1 20 7 . . . . . . . . . . . Leg 16 | . 16 . . . . 14 27 16 . . . 20 5 15 6 6 16 18 23 30 31 31 28 26 . Device 5 | . . . . . . 5 1 . 1 . . . . . 4 5 1 10 14 16 12 8 13 14 11 Storage 6 | . 14 14 14 14 9 9 9 7 7 7 7 7 6 6 6 6 5 5 5 5 5 5 4 3 . Processor 4 | . 5 14 14 14 11 17 18 2 2 6 . . . . 5 . . . . . . . 3 5 7 Hackware 16 | . . . . . . . . 15 18 30 35 31 31 29 28 18 21 15 12 13 23 22 19 12 8 Protection 3 | . . . . . . 2 7 8 6 . . 4 6 1 . 5 5 4 4 2 . 3 2 3 . Ballistic Gun 4 | . 27 28 28 8 25 6 . . . . . . . 4 . . . 2 7 8 . . . . . Ballistic Cannon 3 | . . . . . . 10 22 5 . 2 . . . . . . . 3 2 1 5 5 4 3 . Launcher 1 | . . . . . . . . 5 6 . . . . 1 . 4 3 . . . . . . . . Special Weapon 3 | . . . . . . . . 7 7 7 4 6 6 4 5 5 5 3 2 . 2 4 4 3 . Impact Weapon 1 | . . . . . . . . . 4 2 2 7 6 . . 3 5 3 . 2 3 . . . . Piercing Weapon 2 | . . . . . . . . 9 2 6 7 7 6 6 4 . . . . . . . . . 1 Peak Build Rating 159 | . 8 8 8 8 10 32 38 43 49 45 40 42 44 88 89 101 114 128 128 132 133 141 145 159 54 Average Rating 70 | . 6 7 8 5 7 23 33 38 40 39 35 38 43 48 84 95 110 111 123 116 131 135 141 135 37 On Entrance 58 | 6 6 8 8 8 4 10 32 38 38 34 40 28 42 43 88 85 96 112 128 126 119 130 138 142 18 Naked Turns . | . . . . . . . . . . . . . . . . . . . . . . . . . . Heaviest Build 151 | 13 13 12 12 12 9 29 71 66 73 56 50 70 70 75 83 103 96 126 126 122 124 151 131 145 15 Greatest Support 180 | 20 40 40 10 16 20 60 35 60 60 28 28 63 63 90 90 90 146 180 180 180 154 154 154 147 3 Greatest Overweight (x) 14 | . . 1 1 3 . 3 2 4 2 1 2 14 1 2 . 1 . 1 . 1 . . . 1 4 Average Overweight (x) . | . . . 1 . . . . 1 1 1 1 1 1 . . . . . . . . . . . . Largest Inventory Capacity 20 | . 8 8 8 8 8 8 20 20 20 20 20 20 20 20 20 20 20 20 20 20 20 20 20 20 5 Average Capacity 17 | . 8 8 8 8 8 8 18 18 20 20 20 20 20 20 20 20 20 20 20 20 20 20 20 19 5 Most Carried 20 | . 8 7 8 8 6 8 20 20 20 20 18 20 15 20 20 20 20 20 20 20 20 20 20 20 5 Average Carried 16 | . 7 6 6 7 5 6 14 17 19 18 16 18 14 17 19 19 16 17 19 18 19 19 19 18 4 Final Capacity 20 | 8 8 8 8 8 8 8 20 20 20 20 20 20 20 20 20 20 20 20 20 20 20 20 20 5 5 Final Carried 20 | 6 7 5 8 7 6 8 19 20 19 17 15 16 14 20 20 20 12 20 20 20 20 20 18 5 5 Class Distribution -------------------- 28% | Botlord-Mutant 23% | Bothacker-Mutant 16% | Botlord-Tank 13% | Mutant 8% | Scavenger-Gunner 3% | Botlord-Gunner Dominant Class ---------------- Mutant | -10/Materials Mutant | -10/Mines Mutant | -10/Exiles Mutant | -9/Mines Skirmisher | -8/Materials Scavenger-Gunner | -8/Garrison Scavenger-Gunner | -8/Materials Bothacker-Mutant | -8/Garrison Bothacker-Mutant | -7/Factory Bothacker-Mutant | -7/Garrison Bothacker-Mutant | -7/Factory Bothacker-Mutant | -7/Garrison Botlord-Mutant | -6/Factory Botlord-Mutant | -6/Garrison Botlord-Mutant | -6/Factory Botlord-Mutant | -6/Garrison Botlord-Mutant | -5/Factory Botlord-Mutant | -5/Garrison Botlord-Tank | -5/Factory Botlord-Mutant | -5/Garrison Botlord-Skirmisher | -4/Factory Botlord-Tank | -4/Garrison Botlord-Gunner | -3/Research Botlord-Tank | -3/Garrison Mutant | -3/Testing Resources | -11 -10 -10 -10 -9 -8 -8 -8 -8 -7 -7 -7 -7 -6 -6 -6 -6 -5 -5 -5 -5 -4 -4 -3 -3 -3 ----------- Run | Yrd Mat Min Exi Min Mat Gar Mat Gar Fac Gar Fac Gar Fac Gar Fac Gar Fac Gar Fac Gar Fac Gar Res Gar Tes Matter Collected 9974 | 200 118 65 . . . 519 256 833 268 441 65 536 . 452 314 627 264 626 870 1379 . 917 305 869 50 Remotely . | . . . . . . . . . . . . . . . . . . . . . . . . . . Salvage Created 8622 | . 287 242 . . . 588 377 463 332 346 72 584 . 360 351 365 42 685 1539 1545 . 127 29 240 48 Parts 477 | . 23 20 . . . 37 15 31 28 14 1 32 . 28 30 20 6 20 74 87 . 1 1 7 2 Haulers Intercepted 1 | . . . . . . . 1 . . . . . . . . . . . . . . . . . . Recyclers Shooed 3 | . . 1 . . . . . . 1 . . . . . 1 . . . . . . . . . . Parts Field Recycled . | . . . . . . . . . . . . . . . . . . . . . . . . . . Retrieved Matter . | . . . . . . . . . . . . . . . . . . . . . . . . . . Parts Self-Destructed . | . . . . . . . . . . . . . . . . . . . . . . . . . . Prevented . | . . . . . . . . . . . . . . . . . . . . . . . . . . Kills | -11 -10 -10 -10 -9 -8 -8 -8 -8 -7 -7 -7 -7 -6 -6 -6 -6 -5 -5 -5 -5 -4 -4 -3 -3 -3 ------- Run | Yrd Mat Min Exi Min Mat Gar Mat Gar Fac Gar Fac Gar Fac Gar Fac Gar Fac Gar Fac Gar Fac Gar Res Gar Tes Combat Hostiles Destroyed 195 | . 7 11 . . . 17 4 18 11 10 1 15 . 16 11 9 1 11 17 25 . 1 1 9 . Melee 20 | . . . . . . 1 . 1 . 5 1 6 . 1 . 1 . 3 . 1 . . . . . Guns 71 | . 7 11 . . . 10 . . . . . . . 2 . . . 1 15 23 . . . 2 . Cannons 36 | . . . . . . 6 4 6 1 1 . . . . 2 3 . 3 2 1 . 1 1 5 . AOE 58 | . . . . . . . . 11 8 4 . 9 . 13 9 3 1 . . . . . . . . Classes Destroyed 21 | . 4 . . . . 3 3 1 2 1 . . . . . . . 1 1 1 . . 1 2 1 Worker 4 | . . . . . . . . . 1 . . . . . 2 . 1 . . . . . . . . Builder 10 | . 1 . . . . . . . 5 . . . . . 3 . 1 . . . . . . . . Hauler 1 | . . . . . . . 1 . . . . . . . . . . . . . . . . . . Recycler 6 | . . . . . . . 3 . 1 . . . . . . . . . 2 . . . . . . Drone 5 | . . . . . . . . . . . . . . . . . . . . . . . . 5 . Watcher 2 | . 1 . . . . . . . . . . . . . . . . . . . . . 1 . . Swarmer 37 | . 3 9 . . . 4 . 2 . 1 . . . 10 . 2 . . . 5 . . . 1 . Saboteur 1 | . . . . . . . . . . . . . . . . . . . . 1 . . . . . Grunt 67 | . 4 2 . . . 7 1 9 1 9 . 10 . 2 . 2 . 5 4 9 . 1 . 1 . Brawler 4 | . . . . . . . . . . 1 . 2 . . . . . . 1 . . . . . . Duelist 7 | . . . . . . . . 2 . . . 2 . 1 . 1 . . 1 . . . . . . Protector 4 | . . . . . . . . . 1 . . . . . 2 . . . 1 . . . . . . Researcher 1 | . . . . . . . . . . . . . . . . . . . . . . . . . 1 Sentry 23 | . . . . . . 4 . 2 1 . 1 . . 2 . . . 3 6 4 . . . . . Demolisher 1 | . . . . . . . . . . . . . . . . . . . 1 . . . . . . Specialist 8 | . . . . . . 1 . . 1 . . . . . 2 . . 1 . 3 . . . . . Hunter 12 | . . . . . . . 2 . 3 . . . . . 4 . . . 1 1 . 1 . . . Programmer 28 | . . . . . . 1 1 4 4 . . 2 . 1 3 5 1 1 3 2 . . . . . Heavy 1 | . . . . . . . . . . . . . . . . . . . . . . . 1 . . Q-Series 1 | . . . . . . . . . . . . . . . . . . . . . . . . 1 . Behemoth 2 | . . . . . . . . . . . . . . . . . . 1 . . . . . 1 . Best Kill Streak 15 | . 3 5 . . . 6 4 7 15 3 1 5 . 8 12 4 2 4 10 6 . 1 1 5 1 Combat Bots Only 10 | . 3 5 . . . 6 1 7 8 3 1 5 . 8 9 4 1 4 10 6 . 1 1 5 . Max Kills in Single Turn 9 | . 1 1 . . . 2 1 4 5 2 1 3 . 5 9 2 2 1 3 2 . 1 1 1 1 Gunslinging 1 | . . . . . . 1 . . . . . . . . . . . . . 1 . . . . . Exploded 9 | . . . . . . . . 4 3 2 . 3 . 5 9 2 1 . . . . . . . . Melee 1 | . . . . . . 1 . 1 . 1 1 1 . 1 . 1 . 1 . 1 . . . . . Uniques/NPCs Destroyed . | . . . . . . . . . . . . . . . . . . . . . . . . . . Combat | -11 -10 -10 -10 -9 -8 -8 -8 -8 -7 -7 -7 -7 -6 -6 -6 -6 -5 -5 -5 -5 -4 -4 -3 -3 -3 -------- Run | Yrd Mat Min Exi Min Mat Gar Mat Gar Fac Gar Fac Gar Fac Gar Fac Gar Fac Gar Fac Gar Fac Gar Res Gar Tes Hostile Shots Fired 1996 | . 30 44 . 47 2 166 70 71 108 42 55 96 6 100 83 89 15 163 69 325 . 77 12 221 105 Missed 604 | . 7 9 . 15 1 42 22 25 39 18 20 30 1 47 36 24 4 55 13 61 . 24 4 69 38 Deflected 39 | . . . . . . . . . . . . . . . . . . . 2 37 . . . . . Hits 1392 | . 23 35 . 32 1 124 48 46 69 24 35 66 5 53 47 65 11 108 56 264 . 53 8 152 67 Melee 30 | . . . . 4 . . . . . . . 3 . . . 3 . . 4 6 . . . 9 1 Projectile 1362 | . 23 35 . 28 1 124 48 46 69 24 35 63 5 53 47 62 11 108 52 258 . 53 8 143 66 Critical Strikes 59 | . 2 2 . 1 . 2 1 2 . . . 5 . 1 3 . . 11 5 7 . 1 . 8 8 Actively Blocked 19 | . . . . . . . . . . . . . . . . . . . 5 7 . . . 7 . Part Disruptions 4 | . . . . . . . . . . . . . . . . . . 2 2 . . . . . . Actively Blocked 2 | . . . . . . . . . . . . . . . . . . 2 . . . . . . . Damage Taken 21467 | . 277 320 . 432 17 1534 589 764 839 392 330 1022 150 902 960 1092 229 1895 1317 3403 . 627 248 2768 1360 Core 3529 | . 16 52 . 151 . 260 61 135 185 66 115 157 . 104 147 117 37 171 70 295 . 75 27 519 769 Absorbed by Shields 1387 | . . . . . . 88 . . 15 . . 33 . . . 19 . 101 46 238 . 398 . 449 . Ignored by Resistances 899 | . . . . . . . . . . . . . . . . . . 240 . 218 . 22 . 419 . Core Remaining (%) 49 | 100 . . . 12 . . . 17 . . . 25 . . . 56 . . . 42 . 93 . . . Volleys Fired 732 | . 34 25 . . . 99 27 45 23 29 5 32 1 31 26 44 17 28 55 82 3 58 19 47 2 Largest 3 | . 2 2 . . . 3 2 2 1 1 1 1 1 1 1 1 1 2 3 3 1 1 1 2 1 Hottest 178 | . 40 40 . . . 86 80 80 45 45 5 45 5 45 113 105 45 120 178 105 7 70 70 155 120 Shots Fired 1057 | . 68 50 . . . 141 42 63 23 29 5 32 1 31 26 44 17 32 139 175 3 58 19 57 2 Gun 529 | . 68 50 . . . 110 . . . . . . . 5 . . . 4 123 158 . . . 11 . Cannon 253 | . . . . . . 31 42 45 7 7 . . . . 11 17 . 19 9 8 . 22 7 26 2 Launcher 32 | . . . . . . . . 8 4 2 . 6 . 7 2 2 1 . . . . . . . . Special 243 | . . . . . . . . 10 12 20 5 26 1 19 13 25 16 9 7 9 3 36 12 20 . Kinetic 678 | . 68 50 . . . 79 42 45 7 7 . . . 5 . . . 17 127 166 . 22 7 36 . Thermal 101 | . . . . . . 62 . . . . . . . . 8 17 . 6 5 . . . . 1 2 Explosive 32 | . . . . . . . . 8 4 2 . 6 . 7 2 2 1 . . . . . . . . Electromagnetic 3 | . . . . . . . . . . . . . . . 3 . . . . . . . . . . Robot Hit Streak 31 | . 11 7 . . . 31 16 9 7 9 8 8 5 12 5 13 7 7 16 22 5 15 10 10 12 Robot Miss Streak 6 | . 3 4 . . . 2 3 4 5 2 . 3 . 5 5 2 2 1 4 6 . 3 1 5 . Penetration Max 3 | . . . . . . . . . . . . . . . . . . . 3 1 . . . 1 . Secondary Targets 12 | . . . . . . 5 . . . . . . . . . . . . 2 5 . . . . . Max Gunslinging Chain 1 | . . . . . . 1 . . . . . . . . . . . . 1 1 . . . . . Shots Hit Robots 768 | . 41 29 . . . 79 30 44 18 32 10 40 1 28 21 39 13 48 89 107 3 43 16 35 2 Core Hits 502 | . 21 19 . . . 30 14 49 57 18 1 44 . 39 53 19 9 10 55 45 . 5 1 11 2 Critical Kills 40 | . . . . . . . . . . . . . . . . . . 2 17 21 . . . . . Critical Parts Destroyed 55 | . . 1 . . . . . . 1 . . . . . . 1 . 8 17 25 . 1 . 1 . Critical Strikes 111 | . . 1 . . . 2 . 4 1 . . 1 . . . 1 . 12 35 50 . 2 1 1 . Destroy 88 | . . 1 . . . . . . . . . . . . . . . 1 35 50 . . . 1 . Blast 10 | . . . . . . 2 . 4 . . . . . . . . . 2 . . . 1 1 . . Smash 12 | . . . . . . . . . 1 . . . . . . 1 . 9 . . . 1 . . . Impale 1 | . . . . . . . . . . . . 1 . . . . . . . . . . . . . Melee Attacks 352 | . . . . . . . 7 26 13 30 5 59 . 25 20 24 7 59 3 39 2 5 . . 28 Impact 169 | . . . . . . . . . 13 7 1 9 . . . 24 7 59 3 39 2 5 . . . Slashing . | . . . . . . . . . . . . . . . . . . . . . . . . . . Piercing 183 | . . . . . . . 7 26 . 23 4 50 . 25 20 . . . . . . . . . 28 Sneak Attacks 26 | . . . . . . . . 1 . 7 . 5 . 2 2 1 1 4 . . . 3 . . . Combat Hostiles 10 | . . . . . . . . . . 5 . 2 . 2 . . . 1 . . . . . . . Follow-up Attacks 3 | . . . . . . . . . . 1 1 1 . . . . . . . . . . . . . Damage Inflicted 21920 | . 351 253 . 3 . 1262 778 1960 2051 1034 168 2143 . 1141 2134 1068 343 1900 1101 971 . 1123 479 1587 70 Guns 3567 | . 336 253 . . . 839 . . . . . . . 76 . . . 68 824 888 . . . 283 . Cannons 6314 | . . . . . . 421 648 884 32 138 . . . . 309 316 . 667 261 83 . 794 449 1248 64 Explosions 7826 | . . . . . . . . 1003 1777 388 . 1458 . 899 1681 391 229 . . . . . . . . Melee 4044 | . . . . . . . 106 73 242 508 168 685 . 166 127 361 114 1165 . . . 329 . . . Ramming 169 | . 15 . . 3 . 2 24 . . . . . . . 17 . . . 16 . . . 30 56 6 Kinetic 8505 | . 336 253 . . . 847 648 884 32 138 . . . 76 . . . 587 959 971 . 794 449 1531 . Thermal 1297 | . . . . . . 413 . . . . . . . . 230 316 . 148 126 . . . . . 64 Explosive 7781 | . . . . . . . . 1003 1777 388 . 1458 . 899 1636 391 229 . . . . . . . . Electromagnetic 124 | . . . . . . . . . . . . . . . 124 . . . . . . . . . . Impact 2376 | . . . . . . . . . 242 70 48 47 . . . 361 114 1165 . . . 329 . . . Slashing . | . . . . . . . . . . . . . . . . . . . . . . . . . . Piercing 1668 | . . . . . . . 106 73 . 438 120 638 . 166 127 . . . . . . . . . . Highest Corruption 15 | . . . . 2 . 2 4 8 2 2 2 4 . . . . . 2 8 15 . 2 . . 4 Average Corruption 4 | . . . . 2 . 1 2 7 1 2 2 3 . . . . . 1 3 13 . 1 . . 1 Corruption Purged . | . . . . . . . . . . . . . . . . . . . . . . . . . . Corruption Blocked . | . . . . . . . . . . . . . . . . . . . . . . . . . . Effects 254 | . . . . 2 . 13 11 53 2 11 5 38 . . . . . 15 17 74 . 13 . . . Message Errors 64 | . . . . 1 . 4 2 16 . 4 . 11 . . . . . 4 2 17 . 3 . . . Matter Fused 44 | . . . . 1 . 3 3 10 . 1 . 5 . . . . . 3 4 12 . 2 . . . Heat Flow Errors 37 | . . . . . . 1 . 6 . 2 . 9 . . . . . 2 1 13 . 3 . . . Energy Discharges 30 | . . . . . . 1 . 7 1 1 1 6 . . . . . . 1 11 . 1 . . . Parts Rejected 3 | . . . . . . . . . . . 1 . . . . . . . 1 1 . . . . . Data Loss (minor) 33 | . . . . . . 2 1 8 . 2 . 5 . . . . . 5 1 5 . 4 . . . Data Loss (major) 18 | . . . . . . 1 3 4 . 1 1 2 . . . . . . 1 5 . . . . . Misfires 6 | . . . . . . . . 1 . . . . . . . . . . 2 3 . . . . . Alerts 12 | . . . . . . 1 2 1 1 . 2 . . . . . . 1 2 2 . . . . . Weapon Failures 7 | . . . . . . . . . . . . . . . . . . . 2 5 . . . . . Overload Shots . | . . . . . . . . . . . . . . . . . . . . . . . . . . Overflow Damage 1263 | . . . . . . . 8 43 135 63 8 84 . 39 6 69 . 387 . 58 . 139 21 203 . Projectiles 393 | . . . . . . . 8 29 . . . . . . 5 17 . 7 . 58 . 47 21 201 . Explosions 54 | . . . . . . . . 14 . . . . . 39 1 . . . . . . . . . . Melee 816 | . . . . . . . . . 135 63 8 84 . . . 52 . 380 . . . 92 . 2 . Knockbacks 46 | . . . . . . . 7 17 1 1 . . . . . 1 . 7 1 . . 4 . 7 . Impact 10 | . . . . . . . . . 1 . . . . . . 1 . 5 1 . . 2 . . . Kinetic 35 | . . . . . . . 7 17 . 1 . . . . . . . 1 . . . 2 . 7 . Secondary 1 | . . . . . . . . . . . . . . . . . . 1 . . . . . . . Self-Inflicted Damage 508 | . . . . . . . . 54 118 15 . 31 . 240 27 19 . . . . . . . 1 3 Shots 28 | . . . . . . . . 3 5 1 . 2 . 14 2 1 . . . . . . . . . Rammed 8 | . 2 . . 3 . . . . . . . . . . . . . . . . . . . 2 1 Targets Rammed 29 | . 2 . . 3 . 1 3 . . . . . . . 2 . . . 2 . . . 1 14 1 Kicked 20 | . . . . . . . 3 . . . . . . . 2 . . . 2 . . . 1 12 . Crushed 1 | . . . . . . 1 . . . . . . . . . . . . . . . . . . . Highest Temperature 269 | . 43 36 . . . 234 48 249 . 138 . 269 . 15 208 214 . 134 238 256 . 224 26 38 98 Average Temperature 66 | . 17 15 . . . 60 20 83 . 56 . 93 . 9 73 82 . 58 63 85 . 87 13 13 58 Received Heat Transfer 4378 | . 141 75 . 168 . 338 9 288 99 153 141 431 45 150 63 150 54 644 165 790 . 46 45 141 242 Effects 4 | . . . . . . 3 . . . . . 1 . . . . . . . . . . . . . Energy Bleed 1 | . . . . . . . . . . . . 1 . . . . . . . . . . . . . Interference 3 | . . . . . . 3 . . . . . . . . . . . . . . . . . . . Siege Activations . | . . . . . . . . . . . . . . . . . . . . . . . . . . Martial Activations . | . . . . . . . . . . . . . . . . . . . . . . . . . . Shielding Activations 7 | . . . . . . . . . . . . . . . . . . . 3 4 . . . . . Total Turns 112 | . . . . . . . . . . . . . . . . . . . 42 70 . . . . . Longest Duration 40 | . . . . . . . . . . . . . . . . . . . 20 40 . . . . . Robots Disrupted . | . . . . . . . . . . . . . . . . . . . . . . . . . . Combat Hostiles . | . . . . . . . . . . . . . . . . . . . . . . . . . . Robots Corrupted 11 | . . . . . . . . . 2 . . . . . . 2 . 4 . . . 1 . 2 . Combat Hostiles 10 | . . . . . . . . . 2 . . . . . . 2 . 4 . . . . . 2 . Parts Fried 9 | . . . . . . . . . 1 . . . . . . . . 7 . . . 1 . . . Impact Corruptions 27 | . . . . . . . . . 5 . 1 1 . . . 3 . 11 . . . 3 . 3 . Robots Melted . | . . . . . . . . . . . . . . . . . . . . . . . . . . Combat Hostiles . | . . . . . . . . . . . . . . . . . . . . . . . . . . Parts Melted 3 | . . . . . . 1 . . . . . . . . . 1 . . . . . . . . 1 Heat Transferred 1635 | . . . . . . 758 . . . . . . . . 248 296 . 148 111 . . . . . 74 Parts Sabotaged 11 | . . . . . . . . . . . . . . . . . . . . 11 . . . . . Parts Stolen . | . . . . . . . . . . . . . . . . . . . . . . . . . . Parts Stripped . | . . . . . . . . . . . . . . . . . . . . . . . . . . Power Chain Reactions 1 | . . . . . . . . . . . . . . . 1 . . . . . . . . . . Alert | -11 -10 -10 -10 -9 -8 -8 -8 -8 -7 -7 -7 -7 -6 -6 -6 -6 -5 -5 -5 -5 -4 -4 -3 -3 -3 ------- Run | Yrd Mat Min Exi Min Mat Gar Mat Gar Fac Gar Fac Gar Fac Gar Fac Gar Fac Gar Fac Gar Fac Gar Res Gar Tes Maximum Alert Level 4 | . . . . . . 2 1 3 2 2 1 3 2 4 2 3 2 4 4 4 3 4 3 3 2 Low Security (%) 13 | . 100 100 . 100 100 22 60 20 6 . . 6 . . . . . . . . . . . . . Level 1 18 | . . . . . . 52 39 2 74 26 100 13 3 14 31 22 10 1 . . . . . . 88 Level 2 35 | . . . . . . 25 . 52 19 73 . 56 96 8 68 50 89 39 72 . . 19 58 51 11 Level 3 22 | . . . . . . . . 24 . . . 22 . 58 . 26 . 40 17 43 100 47 41 48 . Level 4 9 | . . . . . . . . . . . . . . 18 . . . 18 9 56 . 33 . . . Level 5 . | . . . . . . . . . . . . . . . . . . . . . . . . . . High Security . | . . . . . . . . . . . . . . . . . . . . . . . . . . Max Security . | . . . . . . . . . . . . . . . . . . . . . . . . . . Peak Influence 1566 | . 96 185 . 110 42 630 306 822 504 646 338 852 452 1179 611 903 699 1287 1181 1566 821 1387 780 832 424 Initial 821 | . . 25 . . 42 1 306 63 431 329 338 164 447 302 611 298 473 389 675 809 821 528 780 441 423 Average 571 | . 22 135 . 23 22 302 186 526 311 515 287 497 425 814 464 581 499 805 676 1169 793 1008 697 641 319 Influence Increases 12148 | . 224 260 . 180 . 729 147 909 442 427 87 898 65 1003 348 805 666 978 872 987 4 1189 146 551 231 Destroy 0b10 Robot/C 5585 | . 140 220 . . . 340 80 480 220 240 40 420 20 540 220 340 220 430 315 420 . 555 60 270 15 Destroy 0b10 Robot/NC 179 | . 10 . . . . . 20 . 45 . . . . . 35 . 25 . 36 . . 8 . . . Destroy Leader 594 | . 32 40 . . . 20 32 20 52 10 10 30 . 20 40 50 32 18 76 32 . 32 16 32 . Allied During Kill 912 | . . . . . . . . 20 12 10 1 41 3 27 8 32 160 103 20 18 . 308 48 101 . Trap Triggered on 0b10 40 | . . . . . . 20 . . . 10 . . . . . . 10 . . . . . . . . Successful Hack 273 | . 12 . . . . 14 . 21 16 . 6 7 . 14 12 21 64 17 19 . . 12 18 . 20 Disable Machine 258 | . . . . . . 15 . . 15 . . . 15 . . 45 60 12 72 . . . . 12 12 Anti-Garrison Action 2032 | . . . . . . 200 . 200 . 100 . 300 . 250 . 250 . 201 . 303 . 190 . 38 . Destroy Structure 1180 | . . . . . . 45 15 93 67 57 . 70 27 92 33 52 20 107 310 130 4 12 4 26 16 Partial Spotted 12 | . . . . . . . . . . . . . . . . . . . . . . . . . 12 Lose Combat Pursuer 1083 | . 30 . . 180 . 75 . 75 15 . 30 30 . 60 . 15 75 90 24 84 . 72 . 72 156 Influence Decreases 11874 | . 158 201 125 70 108 101 680 184 793 252 498 281 485 270 1086 329 1012 248 1002 578 815 557 945 387 709 Entered New Map 6336 | . . 41 125 . 68 1 324 34 391 142 308 71 405 130 554 129 430 168 612 348 745 227 607 147 329 Time Decay 3078 | . 148 140 . 50 40 . 356 . 362 . 120 . 50 . 422 . 392 . 380 . 70 . 238 . 310 Lost Part 820 | . 10 20 . 20 . 100 . 70 20 30 30 70 10 60 20 . 10 40 10 90 . . . 140 70 Lost Ally 1640 | . . . . . . . . 80 20 80 40 140 20 80 90 200 180 40 . 140 . 330 100 100 . Squads Dispatched 34 | . 5 . . . . . 1 . 5 . 2 . 1 . 5 . 3 . 5 . . . 2 . 5 Investigation 1 | . 1 . . . . . . . . . . . . . . . . . . . . . . . . Extermination 7 | . . . . . . . . . 1 . 1 . . . 1 . 2 . 1 . . . . . 1 Reinforcement 15 | . 4 . . . . . . . 1 . 1 . . . 3 . . . 2 . . . 1 . 3 Assault 6 | . . . . . . . . . 2 . . . . . 1 . . . 2 . . . . . 1 Garrison 5 | . . . . . . . 1 . 1 . . . 1 . . . 1 . . . . . 1 . . Intercept . | . . . . . . . . . . . . . . . . . . . . . . . . . . Searches Triggered . | . . . . . . . . . . . . . . . . . . . . . . . . . . Construction Impeded 3 | . . . . . . . . . 1 . . . . . 1 . . . 1 . . . . . . Haulers Reinforced . | . . . . . . . . . . . . . . . . . . . . . . . . . . Active Scanning Responses . | . . . . . . . . . . . . . . . . . . . . . . . . . . Cargo Convoy Interrupts 2 | . . . . . . . . . 1 . . . . . 1 . . . . . . . . . . Stealth | -11 -10 -10 -10 -9 -8 -8 -8 -8 -7 -7 -7 -7 -6 -6 -6 -6 -5 -5 -5 -5 -4 -4 -3 -3 -3 --------- Run | Yrd Mat Min Exi Min Mat Gar Mat Gar Fac Gar Fac Gar Fac Gar Fac Gar Fac Gar Fac Gar Fac Gar Res Gar Tes Distress Signals 12 | . . . . . . . 2 . 1 . . . 1 . 1 . 1 . 3 . . . 1 . 2 Communications Jammed 107 | . . . . . . . . . . . . . . . . . . . . . . . 107 . . Distress Signals 107 | . . . . . . . . . . . . . . . . . . . . . . . 107 . . Times Spotted 582 | . 20 11 . 13 1 24 14 32 25 22 7 32 3 30 26 37 29 32 39 46 . 52 11 53 23 Peak Tracking Total 13 | . 5 5 . 9 1 9 5 6 10 6 5 7 3 7 11 8 9 6 11 8 . 12 3 13 11 Tactical Retreats 41 | . 2 . . 4 . 2 . 5 1 . 1 2 . 1 . 1 2 3 1 7 . 2 . 4 3 Traps | -11 -10 -10 -10 -9 -8 -8 -8 -8 -7 -7 -7 -7 -6 -6 -6 -6 -5 -5 -5 -5 -4 -4 -3 -3 -3 ------- Run | Yrd Mat Min Exi Min Mat Gar Mat Gar Fac Gar Fac Gar Fac Gar Fac Gar Fac Gar Fac Gar Fac Gar Res Gar Tes Traps Triggered 46 | . 1 . . . . . . 5 1 6 . 7 . 1 1 5 . 4 1 8 . 2 . 4 . Indirectly . | . . . . . . . . . . . . . . . . . . . . . . . . . . Trap Hack Attempts . | . . . . . . . . . . . . . . . . . . . . . . . . . . Triggered . | . . . . . . . . . . . . . . . . . . . . . . . . . . Disarmed . | . . . . . . . . . . . . . . . . . . . . . . . . . . Reprogrammed . | . . . . . . . . . . . . . . . . . . . . . . . . . . Reused 4 | . . . . . . 2 . . . 1 . . . . . . 1 . . . . . . . . Traps Extracted . | . . . . . . . . . . . . . . . . . . . . . . . . . . Installed 4 | . . . . . . 2 . . . 1 . . . . . . 1 . . . . . . . . Triggered 4 | . . . . . . 2 . . . 1 . . . . . . 1 . . . . . . . . Most Traps Carried 4 | . . . . . . 4 2 2 2 2 1 1 1 1 1 1 1 . . . . . . . . Machines | -11 -10 -10 -10 -9 -8 -8 -8 -8 -7 -7 -7 -7 -6 -6 -6 -6 -5 -5 -5 -5 -4 -4 -3 -3 -3 ---------- Run | Yrd Mat Min Exi Min Mat Gar Mat Gar Fac Gar Fac Gar Fac Gar Fac Gar Fac Gar Fac Gar Fac Gar Res Gar Tes Machines Disabled 48 | . . . . . . 3 . 2 1 2 . 2 1 4 . 7 4 4 6 5 . 4 . 2 1 Max in Single Turn 2 | . . . . . . 1 . 1 1 1 . 1 . 1 . 1 2 1 2 1 . 1 . 1 1 Garrison Relay 27 | . . . . . . 2 . 2 . 2 . 2 . 3 . 3 . 3 . 5 . 4 . 1 . Machines Repaired . | . . . . . . . . . . . . . . . . . . . . . . . . . . Machines Dismantled . | . . . . . . . . . . . . . . . . . . . . . . . . . . Machines Sabotaged . | . . . . . . . . . . . . . . . . . . . . . . . . . . Overloaded Fab Kills . | . . . . . . . . . . . . . . . . . . . . . . . . . . Hacking | -11 -10 -10 -10 -9 -8 -8 -8 -8 -7 -7 -7 -7 -6 -6 -6 -6 -5 -5 -5 -5 -4 -4 -3 -3 -3 --------- Run | Yrd Mat Min Exi Min Mat Gar Mat Gar Fac Gar Fac Gar Fac Gar Fac Gar Fac Gar Fac Gar Fac Gar Res Gar Tes Machines Accessed 61 | . 3 . 1 . 1 3 3 3 5 2 4 2 1 2 2 3 6 3 3 3 1 2 4 1 3 Terminals 47 | . 2 . . . . 3 2 3 4 2 3 2 . 2 . 3 4 3 2 3 . 2 3 1 3 Fabricators 1 | . . . . . . . . . . . . . . . . . 1 . . . . . . . . Repair Stations . | . . . . . . . . . . . . . . . . . . . . . . . . . . Recycling Units 2 | . 1 . . . . . . . . . . . . . 1 . . . . . . . . . . Scanalyzers . | . . . . . . . . . . . . . . . . . . . . . . . . . . Garrison Access 10 | . . . . . 1 . 1 . 1 . 1 . 1 . 1 . 1 . 1 . 1 . 1 . . Total Hacks 122 | . 7 . 4 . 1 4 4 4 16 2 9 4 1 2 3 3 14 5 10 10 1 5 6 1 6 Successful 51 | . 2 . 4 . 1 1 2 2 6 . 3 2 1 1 2 2 9 2 5 . 1 1 2 . 2 Failed 71 | . 5 . . . . 3 2 2 10 2 6 2 . 1 1 1 5 3 5 10 . 4 4 1 4 Catastrophic 13 | . 1 . . . . 2 1 1 1 1 . . . . . 1 2 1 1 . . . . . 1 Database Lockouts . | . . . . . . . . . . . . . . . . . . . . . . . . . . Manual 52 | . 8 . . . . 1 3 . 14 . 4 . . . 2 . 9 1 1 1 . 1 4 . 3 Terminals 101 | . 5 . . . . 4 2 4 15 2 8 4 . 2 . 3 11 5 9 10 . 5 5 1 6 Fabricators 2 | . . . . . . . . . . . . . . . . . 2 . . . . . . . . Repair Stations . | . . . . . . . . . . . . . . . . . . . . . . . . . . Recycling Units 4 | . 2 . . . . . . . . . . . . . 2 . . . . . . . . . . Scanalyzers . | . . . . . . . . . . . . . . . . . . . . . . . . . . Garrison Access 11 | . . . . . 1 . 2 . 1 . 1 . 1 . 1 . 1 . 1 . 1 . 1 . . Terminal Hacks 30 | . 1 . 4 . . 1 . 2 2 . 2 2 . 1 . 2 4 2 4 . . 1 1 . 1 Record 4 | . . . 4 . . . . . . . . . . . . . . . . . . . . . . Part Schematic 1 | . . . . . . . . . . . . . . . . . 1 . . . . . . . . Open Door 4 | . . . . . . . . 1 . . . 1 . . . 1 . 1 . . . . . . . Branch Access Points 1 | . . . . . . . . . . . . . . . . . 1 . . . . . . . . Emergency Access Points 4 | . . . . . . 1 . . . . . 1 . 1 . . . . 1 . . . . . . Terminal Index 3 | . . . . . . . . . 1 . . . . . . . 1 . 1 . . . . . . Locate Traps 1 | . . . . . . . . . . . . . . . . . . . . . . . 1 . . Hauler Manifests 1 | . . . . . . . . . . . . . . . . . . . 1 . . . . . . Zone Layout 6 | . 1 . . . . . . . 1 . 2 . . . . . 1 . 1 . . . . . . Garrison Registry 1 | . . . . . . . . . . . . . . . . 1 . . . . . . . . . Patrol Navigation 2 | . . . . . . . . 1 . . . . . . . . . 1 . . . . . . . Security Stations 1 | . . . . . . . . . . . . . . . . . . . . . . 1 . . . Protovariant Controls 1 | . . . . . . . . . . . . . . . . . . . . . . . . . 1 Fabricator Hacks . | . . . . . . . . . . . . . . . . . . . . . . . . . . Repair Station Hacks . | . . . . . . . . . . . . . . . . . . . . . . . . . . Recycling Unit Hacks . | . . . . . . . . . . . . . . . . . . . . . . . . . . Scanalyzer . | . . . . . . . . . . . . . . . . . . . . . . . . . . Garrison Access Hacks 10 | . . . . . 1 . 1 . 1 . 1 . 1 . 1 . 1 . 1 . 1 . 1 . . Unlock Access 10 | . . . . . 1 . 1 . 1 . 1 . 1 . 1 . 1 . 1 . 1 . 1 . . Unauthorized Hacks 11 | . 1 . . . . . 1 . 3 . . . . . 1 . 4 . . . . . . . 1 Terminals 6 | . . . . . . . . . 3 . . . . . . . 2 . . . . . . . 1 Botnet 4 | . . . . . . . . . 2 . . . . . . . 1 . . . . . . . 1 Operators 2 | . . . . . . . . . 1 . . . . . . . 1 . . . . . . . . Fabricators 2 | . . . . . . . . . . . . . . . . . 2 . . . . . . . . Fabnet 1 | . . . . . . . . . . . . . . . . . 1 . . . . . . . . Haulers 1 | . . . . . . . . . . . . . . . . . 1 . . . . . . . . Repair Stations . | . . . . . . . . . . . . . . . . . . . . . . . . . . Recycling Units 2 | . 1 . . . . . . . . . . . . . 1 . . . . . . . . . . Recyclers 1 | . . . . . . . . . . . . . . . 1 . . . . . . . . . . Mask 1 | . 1 . . . . . . . . . . . . . . . . . . . . . . . . Scanalyzers . | . . . . . . . . . . . . . . . . . . . . . . . . . . Garrison Access 1 | . . . . . . . 1 . . . . . . . . . . . . . . . . . . Restock 1 | . . . . . . . 1 . . . . . . . . . . . . . . . . . . Data Cores Recovered 1 | . . . . . . . . . . . . . . . . . 1 . . . . . . . . Used . | . . . . . . . . . . . . . . . . . . . . . . . . . . Hacking Detections 48 | . 3 . . . . 3 3 3 5 2 3 1 . 2 1 1 5 2 2 3 . 2 3 1 3 Full Trace Events 3 | . 1 . . . . . . . . . . . . . . . . . . 1 . 1 . . . Feedback Events . | . . . . . . . . . . . . . . . . . . . . . . . . . . Feedback Blocked . | . . . . . . . . . . . . . . . . . . . . . . . . . . Robot Schematics Acquired . | . . . . . . . . . . . . . . . . . . . . . . . . . . Robots Built . | . . . . . . . . . . . . . . . . . . . . . . . . . . Authchips . | . . . . . . . . . . . . . . . . . . . . . . . . . . Time . | . . . . . . . . . . . . . . . . . . . . . . . . . . Total Robot Build Rating . | . . . . . . . . . . . . . . . . . . . . . . . . . . Part Schematics Acquired 1 | . . . . . . . . . . . . . . . . . 1 . . . . . . . . Parts Built . | . . . . . . . . . . . . . . . . . . . . . . . . . . Authchips . | . . . . . . . . . . . . . . . . . . . . . . . . . . Time . | . . . . . . . . . . . . . . . . . . . . . . . . . . Total Part Build Rating . | . . . . . . . . . . . . . . . . . . . . . . . . . . Parts Repaired . | . . . . . . . . . . . . . . . . . . . . . . . . . . Time . | . . . . . . . . . . . . . . . . . . . . . . . . . . Parts Recycled . | . . . . . . . . . . . . . . . . . . . . . . . . . . Recycled Matter . | . . . . . . . . . . . . . . . . . . . . . . . . . . Retrieved Matter . | . . . . . . . . . . . . . . . . . . . . . . . . . . Retrieved Components . | . . . . . . . . . . . . . . . . . . . . . . . . . . Parts Scanalyzed . | . . . . . . . . . . . . . . . . . . . . . . . . . . Part Schematics Acquired . | . . . . . . . . . . . . . . . . . . . . . . . . . . Parts Damaged . | . . . . . . . . . . . . . . . . . . . . . . . . . . Bothacking | -11 -10 -10 -10 -9 -8 -8 -8 -8 -7 -7 -7 -7 -6 -6 -6 -6 -5 -5 -5 -5 -4 -4 -3 -3 -3 ------------ Run | Yrd Mat Min Exi Min Mat Gar Mat Gar Fac Gar Fac Gar Fac Gar Fac Gar Fac Gar Fac Gar Fac Gar Res Gar Tes Used RIF Installer 9 | . . . . . . 1 . 1 . 1 . 1 . 1 . 1 . 1 . 1 . 1 . . . Threat Obfuscator 1 | . . . . . . . . . . . . . . . . . . 1 . . . . . . . Zone Cloak 2 | . . . . . . . . . . . . 1 . . . 1 . . . . . . . . . Watcher Feeds 1 | . . . . . . . . . . . . . . 1 . . . . . . . . . . . Patrol Navigation 1 | . . . . . . . . . . 1 . . . . . . . . . . . . . . . Structural Interface 1 | . . . . . . . . . . . . . . . . . . . . 1 . . . . . Program Shield 1 | . . . . . . . . 1 . . . . . . . . . . . . . . . . . Crosswire 1 | . . . . . . . . . . . . . . . . . . . . . . 1 . . . Robots Hacked 154 | . . . . . . . . 6 6 16 4 14 1 12 7 16 8 8 4 8 1 21 7 15 . Non-combat 16 | . . . . . . . . . 4 . 1 . 1 . 3 . 3 . 1 . 1 . 2 . . Combat 138 | . . . . . . . . 6 2 16 3 14 . 12 4 16 5 8 3 8 . 21 5 15 . Robot Hacks Applied 174 | . . . . . . . . 6 7 17 5 14 1 14 9 18 11 9 6 8 2 23 10 14 . parse_system 8 | . . . . . . . . . 1 1 . . . . . . 1 1 . . . 4 . . . start_evac 1 | . . . . . . . . . . . 1 . . . . . . . . . . . . . . hold_bot 1 | . . . . . . . . . . . . . . . . . 1 . . . . . . . . map_walls 2 | . . . . . . . . . 1 . . . . . . . . . 1 . . . . . . find_fabricator 1 | . . . . . . . . . . . . . . . . . . . . . . . 1 . . drop_inventory 2 | . . . . . . . . . 1 . . . . . 1 . . . . . . . . . . locate_stockpiles 1 | . . . . . . . . . . . . . . . . . . . . . 1 . . . . ignore_parts 1 | . . . . . . . . . . . . . . . 1 . . . . . . . . . . map_route 3 | . . . . . . . . . 1 . . . . . . . 1 . . . . . 1 . . mark_security 1 | . . . . . . . . . . . . . . . . . 1 . . . . . . . . redirect_shields 1 | . . . . . . . . . 1 . . . . . . . . . . . . . . . . find_garrison 6 | . . . . . . . . . 1 . 1 . . . 1 . 1 . 1 . . . 1 . . focus_fire 1 | . . . . . . . . . . . . . . 1 . . . . . . . . . . . scatter_targeting 16 | . . . . . . . . . . 6 . 4 . 2 . . 1 1 . . . 2 . . . disrupt_area 1 | . . . . . . . . . . . . . . . . 1 . . . . . . . . . spike_heat 1 | . . . . . . . . . . . . . . . . . . 1 . . . . . . . amplify_resonance 17 | . . . . . . . . . . 2 . 2 . 1 . 3 . 1 . . . 3 . 5 . wipe_record 11 | . . . . . . . . . . . 1 . . 3 3 . 1 1 1 . . . . 1 . reboot_system 5 | . . . . . . . . . . 2 . 1 . . . 1 . . . . . 1 . . . overwrite_iff 43 | . . . . . . . . 3 . 5 1 3 . 1 . 4 2 3 1 6 . 7 1 6 . streamctrl_high 4 | . . . . . . . . 2 . . 1 . . . . . . . . . . 1 . . . formatsys_low 3 | . . . . . . . . . . . . . 1 . . . . . . . 1 . 1 . . formatsys_high 44 | . . . . . . . . 1 1 1 . 4 . 6 3 9 2 1 2 2 . 5 5 2 . Relay Couplers Released 128 | . . . . . . 13 4 8 . 8 . 9 . 16 . 17 . 11 . 21 . 18 . 3 . Machine Destruction 110 | . . . . . . 10 . 8 . 8 . 9 . 13 . 13 . 11 . 17 . 18 . 3 . Programmers 18 | . . . . . . 3 4 . . . . . . 3 . 4 . . . 4 . . . . . Attached 66 | . . . . . . . . 4 3 4 1 5 1 5 5 8 4 3 3 5 1 10 . 3 1 Crosswired 8 | . . . . . . . . . . . . . . . . . . . . . . 7 . 1 . Fabnet Peak Effective % 3 | . . . . . . . . . . . . . . . . . . . . . 3 3 1 1 1 Autooverrided 1 | . . . . . . . . . . . . . . . . . . . . . . . . 1 . Robots Rewired 24 | . . . . . . . . . . . . 3 . . . 10 . 5 . . . 4 . 2 . Allies Hacked 2 | . . . . . . . . 1 . . . . . . . . 1 . . . . . . . . Hacks Repelled 1 | . . . . . . . . . . . . . . . . . 1 . . . . . . . . Allies | -11 -10 -10 -10 -9 -8 -8 -8 -8 -7 -7 -7 -7 -6 -6 -6 -6 -5 -5 -5 -5 -4 -4 -3 -3 -3 -------- Run | Yrd Mat Min Exi Min Mat Gar Mat Gar Fac Gar Fac Gar Fac Gar Fac Gar Fac Gar Fac Gar Fac Gar Res Gar Tes Total Allies 123 | . . . . . . . . 8 1 6 2 10 1 7 3 21 4 9 3 10 1 19 7 11 . Largest Group 10 | . . . . . . . . 3 1 2 1 3 3 4 2 10 10 6 7 3 4 8 8 4 . Highest-Rated Group 417 | . . . . . . . . 84 32 32 30 66 87 206 110 309 309 249 312 206 234 417 383 332 . Highest-Rated Ally 119 | . . . . . . . . 39 32 20 30 32 32 90 110 46 47 85 51 95 95 95 64 119 . Total Orders 12 | . . . . . . . . . . . . . . . . . 3 . 1 . . . 6 2 . STAY 6 | . . . . . . . . . . . . . . . . . 2 . 1 . . . 1 2 . FOLLOW 3 | . . . . . . . . . . . . . . . . . 1 . . . . . 2 . . PICKUP 1 | . . . . . . . . . . . . . . . . . . . . . . . 1 . . COLLECT 2 | . . . . . . . . . . . . . . . . . . . . . . . 2 . . Ally Attacks 638 | . . . . . . . . 43 6 34 3 28 8 42 8 66 57 72 14 35 . 135 29 58 . Total Damage 20502 | . . . . . . . . 596 128 492 108 777 741 988 376 1206 1662 1880 1725 502 . 5870 1413 2038 . Kills 134 | . . . . . . . . 8 2 2 1 6 2 11 2 8 13 14 12 3 . 36 3 11 . Allies Corrupted 5 | . . . . . . . . 1 . . . . . . . . . 1 . . . 1 2 . . Allies Melted . | . . . . . . . . . . . . . . . . . . . . . . . . . . Intel | -11 -10 -10 -10 -9 -8 -8 -8 -8 -7 -7 -7 -7 -6 -6 -6 -6 -5 -5 -5 -5 -4 -4 -3 -3 -3 ------- Run | Yrd Mat Min Exi Min Mat Gar Mat Gar Fac Gar Fac Gar Fac Gar Fac Gar Fac Gar Fac Gar Fac Gar Res Gar Tes Active Infowar (turns) 7689 | . 410 293 294 152 95 508 . . 185 . . . . . 690 1171 84 1154 586 9 136 13 508 754 647 Optics 1820 | . 410 293 294 152 95 508 . . . . . . . . . . . . . . . . . . 68 Sensors 875 | . . . . . . . . . 185 . . . . . 690 . . . . . . . . . . IFF 1801 | . . . . . . . . . . . . . . . . . . . 498 9 136 13 508 78 559 Machine Analysis 569 | . . . . . . . . . . . . . . . . . . . . . . . . . 569 Spoofing 520 | . . . . . . . . . . . . . . . . . . . . . . . 80 440 . Jamming 3917 | . . . . . . . . . . . . . . . . 1171 84 1154 378 . . . 376 754 . ECM 6 | . . . . . . . . . . . . . . . . . . . . . . . . . 6 Robot Analysis Total . | . . . . . . . . . . . . . . . . . . . . . . . . . . Derelict Logs Recovered . | . . . . . . . . . . . . . . . . . . . . . . . . . . Drone Launches . | . . . . . . . . . . . . . . . . . . . . . . . . . . Drone Recoveries . | . . . . . . . . . . . . . . . . . . . . . . . . . . Exploration | -11 -10 -10 -10 -9 -8 -8 -8 -8 -7 -7 -7 -7 -6 -6 -6 -6 -5 -5 -5 -5 -4 -4 -3 -3 -3 ------------- Run | Yrd Mat Min Exi Min Mat Gar Mat Gar Fac Gar Fac Gar Fac Gar Fac Gar Fac Gar Fac Gar Fac Gar Res Gar Tes Turns Passed 22331 | . 1116 293 294 152 95 1614 811 1583 830 802 251 1846 106 1574 1023 1339 920 1621 880 1672 140 1128 508 1040 693 Spaces Moved 11998 | 1 387 188 307 146 55 862 373 648 385 539 182 739 42 840 548 541 574 910 438 973 99 789 361 458 613 Core 754 | . . . . 53 . 1 . . . . . 2 . . . . . . . . . . . 85 613 Treads 1107 | . 217 59 . . 55 269 . 73 175 . . 21 42 196 . . . . . . . . . . . Legs 8559 | 1 170 . . . . 583 373 487 . . . 695 . 644 548 541 574 910 438 973 99 789 361 373 . Wheels 1481 | . . 129 307 93 . . . . 210 539 182 21 . . . . . . . . . . . . . Hover 88 | . . . . . . . . 88 . . . . . . . . . . . . . . . . . Flight 9 | . . . . . . 9 . . . . . . . . . . . . . . . . . . . Fastest Speed 34 | 120 120 95 95 95 160 34 120 52 115 115 115 130 240 120 140 140 120 106 126 100 108 108 108 50 50 Average Speed 136 | 120 142 115 95 100 160 132 180 202 177 115 118 206 240 164 140 175 120 125 129 113 108 108 108 96 71 Slowest Speed 750 | 120 160 160 95 200 160 200 260 400 240 115 130 750 240 260 140 250 120 185 130 196 108 108 108 180 250 Overloaded Moves . | . . . . . . . . . . . . . . . . . . . . . . . . . . Propulsion Burnouts . | . . . . . . . . . . . . . . . . . . . . . . . . . . Robots Hopped . | . . . . . . . . . . . . . . . . . . . . . . . . . . Potential Cave-ins . | . . . . . . . . . . . . . . . . . . . . . . . . . . Cave-ins Triggered . | . . . . . . . . . . . . . . . . . . . . . . . . . . Exploration Rate (%) 43 | 2 55 37 78 33 6 81 35 60 15 68 7 86 2 74 16 62 13 70 17 83 6 89 11 61 59 Regions Visited 25 Branch Regions 4 Pre-discovered Areas 1 | . . . 1 . . . . . . . . . . . . . . . . . . . . . . Known Exits Taken 10 | . . . . . 1 . 1 . 1 . 1 . 1 . 1 . 1 . 1 . 1 . 1 . . Unknown Exits Taken 5 | 1 1 1 1 1 . . . . . . . . . . . . . . . . . . . . . Scrap Searched 1 | . . . . 1 . . . . . . . . . . . . . . . . . . . . . Spaces Dug 110 | . . . . . . . 2 1 7 4 . 5 . 18 10 2 4 21 3 21 2 . . 2 8 Terrain Destroyed 568 | . . . . . . . 15 70 87 43 . 32 . 106 32 41 10 23 55 32 2 2 2 8 8 Melee 86 | . . . . . . . . 1 4 4 . 5 . 1 10 2 4 21 3 21 2 . . . 8 Projectile 46 | . . . . . . . 15 . 3 . . . . . 4 2 . 2 3 5 . 2 2 8 . AOE 424 | . . . . . . . . 69 80 39 . 27 . 105 18 37 6 . 43 . . . . . . Terrain Rammed . | . . . . . . . . . . . . . . . . . . . . . . . . . . Walls Destroyed . | . . . . . . . . . . . . . . . . . . . . . . . . . . Machines Disabled . | . . . . . . . . . . . . . . . . . . . . . . . . . . Actions | -11 -10 -10 -10 -9 -8 -8 -8 -8 -7 -7 -7 -7 -6 -6 -6 -6 -5 -5 -5 -5 -4 -4 -3 -3 -3 --------- Run | Yrd Mat Min Exi Min Mat Gar Mat Gar Fac Gar Fac Gar Fac Gar Fac Gar Fac Gar Fac Gar Fac Gar Res Gar Tes Total 16441 | . 897 223 309 149 61 1207 457 814 488 657 208 954 46 969 751 859 789 1246 631 1307 126 1011 465 1005 812 Wait 2142 | . 460 9 . . . 179 18 14 49 . 10 10 . 10 122 79 171 135 94 113 17 50 62 411 129 Move 11982 | . 386 187 306 145 55 861 372 647 385 538 182 738 42 839 548 540 574 909 438 972 99 788 361 457 613 Hop . | . . . . . . . . . . . . . . . . . . . . . . . . . . Pick Up 199 | . 5 . 3 . 2 18 14 27 2 7 1 10 . 22 5 11 3 17 5 21 1 12 3 7 3 Fast Attach 127 | . 2 . . . 1 17 4 16 3 . 1 12 . 7 6 8 . 12 5 14 . 4 3 5 7 Attach 123 | . 4 2 . 1 3 6 1 1 2 8 4 9 2 9 3 6 7 10 3 17 2 2 4 7 10 Detach 31 | . . . . . . . 1 . . 1 1 1 . . 3 2 . 6 3 1 . . . 3 9 Swap 128 | . . . . . . 3 2 6 6 3 . 7 . 3 8 12 4 15 13 21 2 13 4 6 . Drop 191 | . 4 . . . . 21 8 19 4 2 . 9 . 18 8 13 5 21 9 18 . 12 5 13 2 Fire 732 | . 34 25 . . . 99 27 45 23 29 5 32 1 31 26 44 17 28 55 82 3 58 19 47 2 Melee 340 | . . . . . . . 7 26 13 28 4 50 . 25 20 24 7 59 3 39 2 5 . . 28 Ram 3 | . . . . . . . . . . . . . . . . . . . . . . . . 2 1 Kick 20 | . . . . . . . 3 . . . . . . . 2 . . . 2 . . . 1 12 . Crush 6 | . 2 . . 3 . 1 . . . . . . . . . . . . . . . . . . . Escape Stasis 147 | . . . . . . . . 13 . 40 . 33 . 5 . 19 . . . 8 . 10 . 11 8 Rewire 266 | . . . . . . . . . 1 . . 43 1 . . 101 . 34 1 1 . 57 3 24 . Trap 4 | . . . . . . 2 . . . 1 . . . . . . 1 . . . . . . . . Miscellaneous . | . . . . . . . . . . . . . . . . . . . . . . . . . . Route ------- -11/Scrapyard -10/Materials (discovered 2 exits: [*Mat] / [*Min]) -10/Mines (discovered 2 exits: [*Mat] / *Exi) -10/Exiles (discovered 2 exits: [*Min x2]) -9/Mines -8/Materials (discovered 2 exits: [*Sto] / Gar) -8/Garrison (discovered 3 exits: *Mat x3) -8/Materials (discovered 2 exits: [*Sto] / Gar) -8/Garrison (discovered 2 exits: *Fac x2) -7/Factory -7/Garrison (discovered 3 exits: *Fac x3) -7/Factory -7/Garrison (discovered 3 exits: *Fac x3) -6/Factory -6/Garrison (discovered 3 exits: *Fac x3) -6/Factory -6/Garrison (discovered 3 exits: *Fac x3) -5/Factory (discovered 3 exits: Upp x2 / Gar) -5/Garrison (discovered 2 exits: *Fac x2) -5/Factory (discovered 2 exits: *Fac / Gar) -5/Garrison (discovered 3 exits: *Fac x3) -4/Factory -4/Garrison (discovered 3 exits: *Res x3) -3/Research (discovered 2 exits: [*Res] / Gar) -3/Garrison (discovered 2 exits: *Tes x2) -3/Testing History --------- Turn | Location | Event 1 | -11/Scrapyard | Discovered new exit (range 0) 1 | -11/Scrapyard | Entered Materials 316 | -10/Materials | Build established: Mutant 966 | -10/Materials | Discovered new exit (range 11) 1040 | -10/Materials | Discovered new exit (range 18) 1117 | -10/Materials | Entered Mines 1177 | -10/Mines | Discovered new exit (range 5) 1406 | -10/Mines | Deemed a non-threat by the Exiles lab entrance 1406 | -10/Mines | Discovered new exit (range 5) 1410 | -10/Mines | Entered Exiles 1423 | -10/Exiles | Discovered new exit (range 17) 1433 | -10/Exiles | Met 8R-AWN 1450 | -10/Exiles | Met EX-HEX 1476 | -10/Exiles | Met EX-BIN 1588 | -10/Exiles | Met EX-DEC 1612 | -10/Exiles | Visited The Gauntlet 1665 | -10/Exiles | Learned location of Zion (-7) 1693 | -10/Exiles | Discovered new exit (range 14) 1704 | -10/Exiles | Entered Mines 1744 | -9/Mines | Core integrity fell below 50% 1810 | -9/Mines | Core integrity fell below 20% 1852 | -9/Mines | Discovered new exit (range 5) 1856 | -9/Mines | Entered Materials 1856 | -8/Materials | Evolved 4 slots: Propulsion x1, Utility x2, Weapon x1 1859 | -8/Materials | Discovered new exit (range 15) 1951 | -8/Materials | Identified exit to Garrison 1951 | -8/Materials | Entered Garrison 2009 | -8/Garrison | Triggered checkpoint 2423 | -8/Garrison | Build established: Scavenger-Gunner 2533 | -8/Garrison | Triggered checkpoint 2603 | -8/Garrison | Triggered checkpoint 2642 | -8/Garrison | Lost 7 parts (1p3n3w) 2802 | -8/Garrison | Discovered new exit (range 11) 3034 | -8/Garrison | Discovered new exit (range 15) 3125 | -8/Garrison | Triggered checkpoint 3174 | -8/Garrison | Discovered new exit (range 15) 3310 | -8/Garrison | Installed Relay Interface Framework 3344 | -8/Garrison | Garrison Relay disabled 3397 | -8/Garrison | Triggered checkpoint 3451 | -8/Garrison | Garrison Relay disabled 3565 | -8/Garrison | Entered Materials 3565 | -8/Materials | Discovered new exit (range 15) 3627 | -8/Materials | Core integrity fell below 50% 4004 | -8/Materials | Found Prototype Launcher 4004 | -8/Materials | Identified Rocket Array 4012 | -8/Materials | Found Rocket Array 4018 | -8/Materials | Found Rocket Array 4332 | -8/Materials | Build established: Scavenger-Mutant 4335 | -8/Materials | Identified exit to Garrison 4350 | -8/Materials | Garrison activated, responded to threat 4376 | -8/Materials | Entered Garrison 4398 | -8/Garrison | Triggered checkpoint 4461 | -8/Garrison | Lost 4 parts (1p2n1w) 4655 | -8/Garrison | Rescued a captive Derelict 4656 | -8/Garrison | Rescued a captive Derelict 4731 | -8/Garrison | Triggered checkpoint 4764 | -8/Garrison | Build established: Bothacker-Mutant 4925 | -8/Garrison | Garrison Relay disabled 5109 | -8/Garrison | Destroyed 7 combat bots 5234 | -8/Garrison | Discovered new exit (range 9) 5672 | -8/Garrison | Discovered new exit (range 11) 5726 | -8/Garrison | Triggered checkpoint 5743 | -8/Garrison | Expanded RIF knowledge: Program Shield 5748 | -8/Garrison | Core integrity fell below 20% 5812 | -8/Garrison | Garrison Relay disabled 5959 | -8/Garrison | Entered Factory 5959 | -7/Factory | Evolved 2 slots: Utility x2 6694 | -7/Factory | Cargo convoy interrupted 6695 | -7/Factory | Garrison activated, responded to threat 6728 | -7/Factory | Destroyed 8 combat bots 6759 | -7/Factory | First assault squad dispatched 6789 | -7/Factory | Identified exit to Garrison 6789 | -7/Factory | Entered Garrison 6851 | -7/Garrison | Triggered checkpoint 6895 | -7/Garrison | Garrison Relay disabled 6983 | -7/Garrison | Triggered checkpoint 7063 | -7/Garrison | Triggered checkpoint 7064 | -7/Garrison | Discovered new exit (range 15) 7085 | -7/Garrison | Expanded RIF knowledge: Patrol Navigation 7112 | -7/Garrison | Identified exit to Factory 7219 | -7/Garrison | Triggered checkpoint 7308 | -7/Garrison | Discovered exit to Factory (range 8) 7359 | -7/Garrison | Triggered checkpoint 7406 | -7/Garrison | Garrison Relay disabled 7563 | -7/Garrison | Discovered exit to Factory (range 13) 7591 | -7/Garrison | Entered Factory 7779 | -7/Factory | Core integrity fell below 50% 7813 | -7/Factory | Lost 3 parts (1p2n) 7842 | -7/Factory | Identified exit to Garrison 7842 | -7/Factory | Entered Garrison 7872 | -7/Garrison | Triggered checkpoint 7919 | -7/Garrison | Lost 3 parts (2n1w) 8047 | -7/Garrison | Garrison Relay disabled 8218 | -7/Garrison | Triggered checkpoint 8251 | -7/Garrison | Triggered checkpoint 8287 | -7/Garrison | Lost 3 allies 8444 | -7/Garrison | Discovered new exit (range 13) 8612 | -7/Garrison | Triggered checkpoint 8690 | -7/Garrison | Triggered checkpoint 8704 | -7/Garrison | Discovered new exit (range 13) 8802 | -7/Garrison | Triggered checkpoint 8876 | -7/Garrison | Garrison Relay disabled 9206 | -7/Garrison | Discovered new exit (range 16) 9352 | -7/Garrison | Triggered checkpoint 9442 | -7/Garrison | Expanded RIF knowledge: Zone Cloak 9688 | -7/Garrison | Entered Factory 9688 | -6/Factory | Accompanied by 2 allies 9688 | -6/Factory | Evolved 2 slots: Propulsion x1, Utility x1 9737 | -6/Factory | Build established: Botlord-Mutant 9764 | -6/Factory | Garrison activated, responded to threat 9794 | -6/Factory | Identified exit to Garrison 9794 | -6/Factory | Entered Garrison 9794 | -6/Garrison | Accompanied by 1 ally 9820 | -6/Garrison | Triggered checkpoint 9895 | -6/Garrison | Spotted Striker 10145 | -6/Garrison | Triggered checkpoint 10145 | -6/Garrison | Triggered checkpoint 10174 | -6/Garrison | Destroyed 8 combat bots 10256 | -6/Garrison | Garrison Relay disabled 10420 | -6/Garrison | Triggered checkpoint 10447 | -6/Garrison | Expanded RIF knowledge: Watcher Feeds 10466 | -6/Garrison | Garrison Relay disabled 10538 | -6/Garrison | Heavy support dispatched to Factory 10674 | -6/Garrison | Discovered new exit (range 14) 10848 | -6/Garrison | Triggered checkpoint 10865 | -6/Garrison | Discovered new exit (range 15) 10912 | -6/Garrison | Triggered checkpoint 11083 | -6/Garrison | Discovered new exit (range 10) 11143 | -6/Garrison | Garrison Relay disabled 11310 | -6/Garrison | Heavy support dispatched to Factory 11368 | -6/Garrison | Entered Factory 11368 | -6/Factory | Accompanied by 2 allies 11718 | -6/Factory | First assault squad dispatched 12239 | -6/Factory | Cargo convoy interrupted 12271 | -6/Factory | Destroyed 9 combat bots 12283 | -6/Factory | Found Prototype Hackware 12391 | -6/Factory | Identified exit to Garrison 12391 | -6/Factory | Entered Garrison 12400 | -6/Garrison | H-XX Assembler disabled 12595 | -6/Garrison | Triggered checkpoint 12685 | -6/Garrison | Garrison Relay disabled 12785 | -6/Garrison | Lost 3 allies 12828 | -6/Garrison | Triggered checkpoint 12877 | -6/Garrison | Lost 4 allies 12967 | -6/Garrison | Triggered checkpoint 13015 | -6/Garrison | Triggered checkpoint 13097 | -6/Garrison | Triggered checkpoint 13155 | -6/Garrison | Discovered new exit (range 45) 13155 | -6/Garrison | Discovered new exit (range 70) 13155 | -6/Garrison | Discovered new exit (range 24) 13185 | -6/Garrison | Triggered checkpoint 13196 | -6/Garrison | Garrison Relay disabled 13361 | -6/Garrison | Triggered checkpoint 13394 | -6/Garrison | Garrison Relay disabled 13423 | -6/Garrison | Expanded RIF knowledge: Zone Cloak 13730 | -6/Garrison | Entered Factory 13730 | -5/Factory | Accompanied by 10 allies 13730 | -5/Factory | Evolved 2 slots: Propulsion x2 13815 | -5/Factory | Identified Exp. System Shield 13981 | -5/Factory | Identified exit to Upper Caves 14649 | -5/Factory | Garrison activated, responded to threat 14650 | -5/Factory | Identified exit to Garrison 14650 | -5/Factory | Entered Garrison 14675 | -5/Garrison | Lost 6 allies 14870 | -5/Garrison | Garrison Relay disabled 15242 | -5/Garrison | Spotted B-75 Beast 15248 | -5/Garrison | Triggered checkpoint 15262 | -5/Garrison | Triggered checkpoint 15263 | -5/Garrison | Destroyed B-75 Beast 15494 | -5/Garrison | Expanded RIF knowledge: Threat Obfuscation 15548 | -5/Garrison | Triggered checkpoint 15568 | -5/Garrison | Triggered checkpoint 15649 | -5/Garrison | Discovered new exit (range 10) 15720 | -5/Garrison | Triggered checkpoint 15734 | -5/Garrison | Garrison Relay disabled 15939 | -5/Garrison | Discovered new exit (range 8) 16140 | -5/Garrison | Triggered checkpoint 16199 | -5/Garrison | Garrison Relay disabled 16231 | -5/Garrison | Build established: Botlord-Tank 16271 | -5/Garrison | Entered Factory 16271 | -5/Factory | Accompanied by 5 allies 16571 | -5/Factory | First assault squad dispatched 16781 | -5/Factory | Discovered new exit (range 18) 16960 | -5/Factory | Destroyed 10 combat bots 17151 | -5/Factory | Identified exit to Garrison 17151 | -5/Factory | Entered Garrison 17151 | -5/Garrison | Accompanied by 1 ally 17433 | -5/Garrison | Triggered checkpoint 17482 | -5/Garrison | Garrison Relay disabled 17529 | -5/Garrison | System corruption reached 10% 17661 | -5/Garrison | Triggered checkpoint 17677 | -5/Garrison | Triggered checkpoint 17718 | -5/Garrison | Lost 3 allies 17748 | -5/Garrison | Triggered checkpoint 17753 | -5/Garrison | Lost 3 parts (1u2w) 18018 | -5/Garrison | Discovered new exit (range 13) 18063 | -5/Garrison | Triggered checkpoint 18091 | -5/Garrison | Garrison Relay disabled 18142 | -5/Garrison | Expanded RIF knowledge: Structural Interface 18147 | -5/Garrison | Spotted B-75 Beast 18158 | -5/Garrison | Core integrity fell below 50% 18239 | -5/Garrison | Garrison Relay disabled 18302 | -5/Garrison | Build established: Botlord-Mutant 18350 | -5/Garrison | Discovered new exit (range 15) 18541 | -5/Garrison | Discovered new exit (range 13) 18555 | -5/Garrison | Lost 3 allies 18621 | -5/Garrison | Found embedded Infiltrators 18743 | -5/Garrison | Garrison Relay disabled 18755 | -5/Garrison | Garrison Relay disabled 18823 | -5/Garrison | Entered Factory 18823 | -4/Factory | Accompanied by 3 allies 18823 | -4/Factory | Evolved 2 slots: Power x1, Utility x1 18859 | -4/Factory | Found Quantum Capacitor 18963 | -4/Factory | Identified exit to Garrison 18963 | -4/Factory | Entered Garrison 18963 | -4/Garrison | Accompanied by 4 allies 19031 | -4/Garrison | Triggered checkpoint 19087 | -4/Garrison | Garrison Relay disabled 19110 | -4/Garrison | Garrison Relay disabled 19156 | -4/Garrison | Spotted B-86 Titan 19159 | -4/Garrison | Triggered checkpoint 19165 | -4/Garrison | Triggered checkpoint 19182 | -4/Garrison | Allies destroyed B-86 Titan 19236 | -4/Garrison | Discovered new exit (range 15) 19284 | -4/Garrison | Lost 4 allies 19321 | -4/Garrison | Triggered checkpoint 19374 | -4/Garrison | Expanded RIF knowledge: Crosswire 19384 | -4/Garrison | Garrison Relay disabled 19477 | -4/Garrison | Build established: Botlord-Tank 19489 | -4/Garrison | Triggered checkpoint 19498 | -4/Garrison | Found embedded Infiltrators 19629 | -4/Garrison | Learned Research security intel 19635 | -4/Garrison | Spotted B-90 Cyclops 19636 | -4/Garrison | Discovered new exit (range 13) 19679 | -4/Garrison | Triggered checkpoint 19735 | -4/Garrison | Triggered checkpoint 19773 | -4/Garrison | Lost 4 allies 19919 | -4/Garrison | Triggered checkpoint 19943 | -4/Garrison | Discovered new exit (range 10) 19960 | -4/Garrison | Lost 3 allies 19981 | -4/Garrison | Triggered checkpoint 20035 | -4/Garrison | Garrison Relay disabled 20091 | -4/Garrison | Entered Research 20091 | -3/Research | Accompanied by 3 allies 20091 | -3/Research | Evolved 2 slots: Utility x2 20434 | -3/Research | Build established: Botlord-Gunner 20464 | -3/Research | Discovered new exit (range 11) 20579 | -3/Research | Garrison activated, responded to threat 20599 | -3/Research | Identified exit to Garrison 20599 | -3/Research | Entered Garrison 20611 | -3/Garrison | Lost 3 allies 20633 | -3/Garrison | Rewired Executioner 20652 | -3/Garrison | Rewired Executioner 20669 | -3/Garrison | Spotted B-86 Titan 20670 | -3/Garrison | Spotted B-86 Titan 20709 | -3/Garrison | Triggered checkpoint 20768 | -3/Garrison | Build established: Botlord-Tank 21038 | -3/Garrison | Spotted B-86 Titan 21041 | -3/Garrison | Triggered checkpoint 21042 | -3/Garrison | Triggered checkpoint 21057 | -3/Garrison | Triggered checkpoint 21095 | -3/Garrison | Destroyed B-86 Titan 21132 | -3/Garrison | Garrison Relay disabled 21158 | -3/Garrison | Q-Series assembled to engage unique threat in Testing 21313 | -3/Garrison | Q-Series assembled to engage unique threat in Testing 21329 | -3/Garrison | Build established: Botlord-Gunner 21438 | -3/Garrison | Triggered checkpoint 21507 | -3/Garrison | Triggered checkpoint 21585 | -3/Garrison | Discovered new exit (range 15) 21617 | -3/Garrison | Lost 12 parts (2p5n4u1w) 21633 | -3/Garrison | Discovered new exit (range 12) 21639 | -3/Garrison | Entered Testing 21825 | -3/Testing | Found Prototype Device 21825 | -3/Testing | Identified Exp. ECM Suite 21848 | -3/Testing | Build established: Mutant 22139 | -3/Testing | Found Prototype Energy Gun 22139 | -3/Testing | Identified Warp Gun 22189 | -3/Testing | Scanned by Researcher 22194 | -3/Testing | Core integrity fell below 50% 22230 | -3/Testing | Protovariant out of control (PX-538KX48Z9D) 22230 | -3/Testing | Unleashed a protovariant (PX-538KX48Z9D) 22236 | -3/Testing | Core integrity fell below 20% 22263 | -3/Testing | Lost 6 parts (5u1w) 22280 | -3/Testing | Spotted PX-538KX48Z9D 22332 | -3/Testing | Destroyed by G-67 Veteran with Field Laser Last Messages --------------- Downloaded coordinate data. Protovariant control network temporarily suspended. 22232_ Relay Coupler [Demolisher] destroyed. 22232_ Critical hit (Burn: +50). 22247_ C-55 Analyst calibrates the Antimatter Diverter. 22251_ K-01 Serf cleans the Antimatter Diverter. 22252_ Acquired Prototype Reactor. 22259_ ALERT: Live fire test to commence in T-25. 22260_ Slug penetrates Wall. 22260_ RIF reveals location of hidden door. 22262_ ALERT: Hostiles spotted, dispatching reinforcements to Terminal T007. 22264_ Acquired Enh. Optical Array. 22266_ RIF reveals location of hidden door. 22273_ Acquired Hacking Suite. 22276_ Acquired Unknown Treads. 22276_ Identified Biometal Medium Treads. 22313_ O-32 Director sends out distress signal. 22317_ P-80 Master fails to hack PX-538KX48Z9D. 22330_ Biometal Medium Treads destroyed. Map ----- +----------------------------------------------------+ | ?????????????????????????????????????????????????? | | ?????????????????????????????????????????????????? | | ?????????????????????????????????????????????????? | | ?????????????????????????????????????????????????? | | ?????????????????????????????????????????????????? | | ????????????????????????????##?????##???#????????? | | ????????????????????????????# ???? ?? ???????? | | ????????????????????????????# ???? """""???????? | | ???????????????????????????## ??? """" ???????? | | ???????????????????????????? ???? "" $????????? | | ????????????????????????????# ??? """%????????? | | ????????????????????????????# ???% $????????? | | ???????????????????????###### ####"%"###??????? | | ?????????????????????# """ ## % % =% ???????? | | ?????????????????????#""T""#; % % % % ???????? | | ?????????????####+####""[""#;! % % ????????? | | "???????????? i %%%=%[ ??%] %%%%%????????? | | "????????????? % % %*!%*%???#"# % ########## | | ?????????????? =%%**=?????#" # | | ??????????????""""" =%""?????#" # | | ????????????" """"" """"" ""??????## # """ | | ?????????????""""" """"" ""??????#" # """" | | ?????????????? ???????## + """" | | ????????????????? gg ????????# # """ | | #???????????????????#g ########## # | | #???????????????????# @# # % # """ | | #???????????????????# # # # """" | | #???????????????????# + " # """" | | #???????????????????# # # # """ | | #???????????????????# # # + | | #??""???????????????# # # ########## | | #?"""???????????????### ## # # | | #?"T??????????????????# ## # #] """" " | | #?""? #???????????????# ## # # """" " | | #?"" #???????????????# #####+##### + [ """" " | | # "" #???????????????# #???# #???# # """" " | | + !#???????????????#l#???# #???# #! | | #######???????????????# #???# #???# ########## | | #?????????????????????#g#??##+######+#########??? | | #?????????????????????# #??# #??? | | #?????????????????????# #??# #??? | | #?????????????????????#g#??# ! #??? | | ##############?######## #### ! #??? | | #?# # """ """ !! #??? | | #?# # """S""" ! #??? | | #?# "" # #??? | | ### """###################??? | | ######### T# """ F"#????????????????????? | | #???????# ""# ^""" """#????????????????????? | | #???????# ### """ "" #????????????????????? | +----------------------------------------------------+ Best States ------------- Heat Dissipation 102 Energy Generation 49 Energy Capacity 600 Matter Stores 300 Matter Capacity 300 Sight Range 22 Robot Scan Range 16 Terrain Scan Density 10 ECM Strength 3 Jamming Range 14 EM Shielding 4 Armor Coverage 600 Resistance: KI 30 Resistance: TH 30 Evasion (%) 70 Targeting Accuracy 8 Launcher Accuracy 30 Core Analysis 6 Armor Integrity Analysis 40 Recoil Reduction 3 Offensive Hacking 10 Defensive Hacking 16 Relay Coupler Types 7 Relay Coupler Value 129 Item Schematics ----------------- KE Penetrator | -5/Factory | Hacked Robot Schematics ------------------ None Fabricated ------------ Nothing Repaired ---------- Nothing Alien Tech Used ----------------- None Achievements -------------- None Challenges ------------ None Game ------ Seed LightpackShadingScrap Manual? 0 Play Time 04:22:42 Cumulative 498.6 hours Start 2025.05.27 @ 20:57:09 End 2025.05.29 @ 00:19:35 Sessions 4 Manual Loads 0 Difficulty Rogue Special Mode None Game No. 544 Rogue 544 Adventurer 0 Explorer 0 Win Type - Total 14 Types 9/0/4/1/0/0/0/0/0/0 Lore% 75 Gallery% 79 Achievement% 82 Wizard Run 0 Options --------- Layout 0 ASCII 0 Keyboard 0 Movement Numpad Keybinds 0 Fullscreen 1 Font 18/SmallcapsGlow Map View 76x50 Zoom Use 0% Tactical HUD 1 Map Filters NONE Filters NONE Steam 1 RUN: 36162c2b-0302-4b41-938f-28682532a708